fUSD/lending_fUSD_20260527
["ID","MTS","AMOUNT","RATE_DAILY","PERIOD"]
[423105040,1779855039000,-150.0,0.00015451,2]
[423105035,1779855039000,-150.0,0.00015447,2]
[423105039,1779855039000,-380.71609283,0.0001545,2]
[423105038,1779855039000,-163.26368969,0.0001545,2]
[423105041,1779855039000,-13008.57294868,0.00015459,2]
[423105034,1779855039000,-150.0,0.00015447,2]
[423105033,1779855039000,-150.0,0.00015447,2]
[423105037,1779855039000,-420.0,0.00015449,2]
[423105042,1779855039000,-150.0,0.00015464,2]
[423105043,1779855039000,-163.26368969,0.00015465,2]
[423105050,1779855039000,-150.0,0.00015495,2]
[423105044,1779855039000,-380.71609283,0.00015465,2]
[423105045,1779855039000,-150.0,0.00015473,2]
[423105046,1779855039000,-163.26368969,0.00015481,2]
[423105049,1779855039000,-150.0,0.00015494,2]
[423105048,1779855039000,-150.0,0.00015492,2]
[423105051,1779855039000,-163.26368969,0.00015497,2]
[423105047,1779855039000,-380.71609283,0.00015481,2]
[423105052,1779855039000,-380.71609283,0.00015497,2]
[423105055,1779855039000,-163.26368969,0.00015513,2]
[423105063,1779855039000,-163.26368969,0.00015545,2]
[423105092,1779855039000,-380.71609283,0.00015608,2]
[423105057,1779855039000,-150.0,0.00015517,2]
[423105061,1779855039000,-150.0,0.00015537,2]
[423105054,1779855039000,-150.0,0.00015503,2]
[423105059,1779855039000,-163.26368969,0.00015529,2]
[423105056,1779855039000,-380.71609283,0.00015513,2]
[423105093,1779855039000,-64943.35008826,0.00015608,2]
[423105069,1779855039000,-163.26368969,0.0001556,2]
[423105090,1779855039000,-150.0,0.00015605,2]
[423105126,1779855039000,-163.26368969,0.00015671,2]
[423105127,1779855039000,-222.01031952,0.00015671,2]
[423105129,1779855039000,-269.36912467,0.00015671,2]
[423105130,1779855039000,-242.90390146,0.00015671,2]
[423105128,1779855039000,-272.56195256,0.00015671,2]
[423105137,1779855039000,-500.0,0.0001568,2]
[423105133,1779855039000,-1097.29439826,0.0001568,5]
[423105131,1779855039000,-380.71609283,0.00015671,2]
[423105136,1779855039000,-500.0,0.0001568,2]
[423105134,1779855039000,-1097.29439826,0.0001568,5]
[423105132,1779855039000,-1638.4186133,0.0001568,5]
[423105135,1779855039000,-233.86857724,0.0001568,2]
[423105139,1779855039000,-500.0,0.0001568,2]
[423105149,1779855039000,-500.0,0.0001568,2]
[423105143,1779855039000,-500.0,0.0001568,2]
[423105140,1779855039000,-500.0,0.0001568,2]
[423105148,1779855039000,-500.0,0.0001568,2]
[423105146,1779855039000,-500.0,0.0001568,2]
[423105150,1779855039000,-500.0,0.0001568,2]
[423105147,1779855039000,-500.0,0.0001568,2]
[423105138,1779855039000,-500.0,0.0001568,2]
[423105144,1779855039000,-500.0,0.0001568,2]
[423105145,1779855039000,-500.0,0.0001568,2]
[423105141,1779855039000,-500.0,0.0001568,2]
[423105142,1779855039000,-500.0,0.0001568,2]
[423105094,1779855039000,-150.0,0.00015612,2]
[423105152,1779855039000,-500.0,0.0001568,2]
[423105118,1779855039000,-380.71609283,0.00015655,2]
[423105116,1779855039000,-150.0,0.00015649,2]
[423105153,1779855039000,-500.0,0.0001568,2]
[423105117,1779855039000,-163.26368969,0.00015655,2]
[423105119,1779855039000,-64943.35008826,0.00015658,2]
[423105091,1779855039000,-163.26368969,0.00015608,2]
[423105095,1779855039000,-150.0,0.00015615,2]
[423105098,1779855039000,-40253.29926709,0.00015625,2]
[423105100,1779855039000,-150.0,0.00015627,2]
[423105099,1779855039000,-150.0,0.00015626,2]
[423105111,1779855039000,-845.036995,0.00015647,2]
[423105107,1779855039000,-20839.0,0.00015644,2]
[423105106,1779855039000,-8633.0,0.00015644,2]
[423105105,1779855039000,-165.0,0.00015644,2]
[423105101,1779855039000,-64943.35008826,0.00015633,2]
[423105104,1779855039000,-150.0,0.00015642,2]
[423105109,1779855039000,-845.036995,0.00015647,2]
[423105102,1779855039000,-163.26368969,0.0001564,2]
[423105096,1779855039000,-163.26368969,0.00015624,2]
[423105103,1779855039000,-380.71609283,0.0001564,2]
[423105110,1779855039000,-845.036995,0.00015647,2]
[423105115,1779855039000,-151.0,0.00015647,2]
[423105114,1779855039000,-151.0,0.00015647,2]
[423105121,1779855039000,-40253.29926709,0.00015669,2]
[423105120,1779855039000,-151.0,0.00015669,2]
[423105112,1779855039000,-845.036995,0.00015647,2]
[423105122,1779855039000,-3712.44124045,0.00015671,2]
[423105123,1779855039000,-260.41361999,0.00015671,2]
[423105113,1779855039000,-151.0,0.00015647,2]
[423105124,1779855039000,-240.29432159,0.00015671,2]
[423105108,1779855039000,-40253.29926709,0.00015647,2]
[423105125,1779855039000,-152.37901821,0.00015671,2]
[423105176,1779855040000,-40253.29926709,0.00015714,2]
[423105189,1779855040000,-500.0,0.00015779,2]
[423105186,1779855040000,-40253.29926709,0.00015736,2]
[423105191,1779855040000,-670.58118315,0.00015779,2]
[423105192,1779855040000,-1500000.0,0.0001578,2]
[423105174,1779855040000,-4600.0,0.000157,5]
[423105187,1779855040000,-64943.35008826,0.00015756,2]
[423105183,1779855040000,-151.0,0.0001573,2]
[423105184,1779855040000,-151.0,0.0001573,2]
[423105185,1779855040000,-64943.35008826,0.00015732,2]
[423105195,1779855040000,-176.172012,0.0001578,2]
[423105201,1779855040000,-845.036995,0.0001578,2]
[423105205,1779855040000,-500.0,0.0001578,2]
[423105197,1779855040000,-583.647802,0.0001578,2]
[423105199,1779855040000,-583.647802,0.0001578,2]
[423105207,1779855040000,-151.0,0.0001578,2]
[423105198,1779855040000,-583.647802,0.0001578,2]
[423105200,1779855040000,-500.0,0.0001578,2]
[423105204,1779855040000,-845.036995,0.0001578,2]
[423105208,1779855040000,-300.0,0.0001578,2]
[423105203,1779855040000,-845.036995,0.0001578,2]
[423105202,1779855040000,-845.036995,0.0001578,2]
[423105206,1779855040000,-151.0,0.0001578,2]
[423105188,1779855040000,-40253.29926709,0.00015759,2]
[423105216,1779855040000,-180.17736497,0.00015802,2]
[423105196,1779855040000,-583.647802,0.0001578,2]
[423105177,1779855040000,-3712.44124045,0.0001572,2]
[423105167,1779855040000,-151.0,0.00015681,2]
[423105182,1779855040000,-845.036995,0.0001573,2]
[423105209,1779855040000,-300.0,0.0001578,2]
[423105157,1779855040000,-300.0,0.0001568,2]
[423105154,1779855040000,-500.0,0.0001568,2]
[423105155,1779855040000,-500.0,0.0001568,2]
[423105156,1779855040000,-500.0,0.0001568,2]
[423105160,1779855040000,-666.0,0.0001568,2]
[423105158,1779855040000,-300.0,0.0001568,2]
[423105161,1779855040000,-300.0,0.0001568,2]
[423105165,1779855040000,-845.036995,0.00015681,2]
[423105164,1779855040000,-845.036995,0.00015681,2]
[423105162,1779855040000,-184.999835,0.00015681,2]
[423105163,1779855040000,-845.036995,0.00015681,2]
[423105193,1779855040000,-151.0,0.0001578,2]
[423105166,1779855040000,-845.036995,0.00015681,2]
[423105168,1779855040000,-151.0,0.00015681,2]
[423105169,1779855040000,-151.0,0.00015681,2]
[423105171,1779855040000,-64943.35008826,0.00015682,2]
[423105194,1779855040000,-151.0,0.0001578,2]
[423105172,1779855040000,-40253.29926709,0.00015692,2]
[423105175,1779855040000,-64943.35008826,0.00015707,2]
[423105180,1779855040000,-845.036995,0.0001573,2]
[423105173,1779855040000,-354.97,0.000157,2]
[423105181,1779855040000,-845.036995,0.0001573,2]
[423105190,1779855040000,-300.0,0.00015779,2]
[423105179,1779855040000,-845.036995,0.0001573,2]
[423105178,1779855040000,-38598.39786137,0.0001573,2]
[423105170,1779855040000,-2500000.0,0.00015681,2]
[423105212,1779855040000,-33218.9209,0.00015781,2]
[423105256,1779855040000,-500.0,0.0001588,2]
[423105211,1779855040000,-64943.35008826,0.00015781,2]
[423105241,1779855040000,-500.0,0.0001588,2]
[423105245,1779855040000,-500.0,0.0001588,2]
[423105247,1779855040000,-500.0,0.0001588,2]
[423105257,1779855040000,-500.0,0.0001588,2]
[423105246,1779855040000,-500.0,0.0001588,2]
[423105253,1779855040000,-500.0,0.0001588,2]
[423105250,1779855040000,-549.72930658,0.0001588,2]
[423105248,1779855040000,-500.0,0.0001588,2]
[423105249,1779855040000,-500.0,0.0001588,2]
[423105254,1779855040000,-500.0,0.0001588,2]
[423105252,1779855040000,-500.0,0.0001588,2]
[423105251,1779855040000,-500.0,0.0001588,2]
[423105258,1779855040000,-500.0,0.0001588,2]
[423105259,1779855040000,-500.0,0.0001588,2]
[423105260,1779855040000,-500.0,0.0001588,2]
[423105265,1779855040000,-500.0,0.0001588,2]
[423105266,1779855040000,-500.44476879,0.0001588,2]
[423105263,1779855040000,-500.0,0.0001588,2]
[423105262,1779855040000,-500.0,0.0001588,2]
[423105261,1779855040000,-500.0,0.0001588,2]
[423105268,1779855040000,-333.11045048,0.0001588,2]
[423105264,1779855040000,-500.0,0.0001588,2]
[423105267,1779855040000,-500.0,0.0001588,2]
[423105269,1779855040000,-500.0,0.0001588,2]
[423105220,1779855040000,-351.41551866,0.00015879,2]
[423105235,1779855040000,-1347.89,0.0001588,2]
[423105236,1779855040000,-1347.89,0.0001588,2]
[423105255,1779855040000,-233.52770708,0.0001588,2]
[423105239,1779855040000,-500.0,0.0001588,2]
[423105214,1779855040000,-2000.0,0.00015781,2]
[423105233,1779855040000,-666.64,0.0001588,2]
[423105210,1779855040000,-40253.29926709,0.00015781,2]
[423105217,1779855040000,-3712.44124045,0.00015871,2]
[423105213,1779855040000,-5996.4441,0.00015781,2]
[423105215,1779855040000,-5800.0,0.000158,5]
[423105219,1779855040000,-7463.30020391,0.00015879,2]
[423105218,1779855040000,-5423.136851,0.00015876,2]
[423105221,1779855040000,-500.0,0.0001588,2]
[423105222,1779855040000,-500.0,0.0001588,2]
[423105225,1779855040000,-500.0,0.0001588,2]
[423105223,1779855040000,-502.4828642,0.0001588,2]
[423105224,1779855040000,-500.55356885,0.0001588,2]
[423105226,1779855040000,-616.22,0.0001588,2]
[423105232,1779855040000,-666.64,0.0001588,2]
[423105238,1779855040000,-500.0,0.0001588,2]
[423105229,1779855040000,-500.0,0.0001588,2]
[423105228,1779855040000,-616.22,0.0001588,2]
[423105230,1779855040000,-586.0,0.0001588,2]
[423105231,1779855040000,-586.0,0.0001588,2]
[423105234,1779855040000,-1097.29439826,0.0001588,5]
[423105240,1779855040000,-500.0,0.0001588,2]
[423105244,1779855040000,-500.0,0.0001588,2]
[423105242,1779855040000,-500.0,0.0001588,2]
[423105243,1779855040000,-500.0,0.0001588,2]
[423105237,1779855040000,-300.0,0.0001588,2]
[423105227,1779855040000,-500.0,0.0001588,2]
[423105309,1779855041000,-151.0,0.00015881,2]
[423105313,1779855041000,-1481.133072,0.00015881,2]
[423105314,1779855041000,-151.0,0.00015881,2]
[423105306,1779855041000,-47985.5280403,0.00015881,2]
[423105298,1779855041000,-280.947128,0.00015881,2]
[423105304,1779855041000,-280.947128,0.00015881,2]
[423105297,1779855041000,-280.947128,0.00015881,2]
[423105302,1779855041000,-280.947128,0.00015881,2]
[423105300,1779855041000,-280.947128,0.00015881,2]
[423105307,1779855041000,-151.0,0.00015881,2]
[423105312,1779855041000,-151.621712,0.00015881,2]
[423105301,1779855041000,-280.947128,0.00015881,2]
[423105311,1779855041000,-151.0,0.00015881,2]
[423105322,1779855041000,-151.0,0.00015881,2]
[423105316,1779855041000,-151.0,0.00015881,2]
[423105315,1779855041000,-151.0,0.00015881,2]
[423105320,1779855041000,-151.0,0.00015881,2]
[423105318,1779855041000,-151.0,0.00015881,2]
[423105317,1779855041000,-151.0,0.00015881,2]
[423105319,1779855041000,-151.0,0.00015881,2]
[423105326,1779855041000,-151.0,0.00015881,2]
[423105324,1779855041000,-583.647802,0.00015881,2]
[423105321,1779855041000,-151.0,0.00015881,2]
[423105329,1779855041000,-583.647802,0.00015881,2]
[423105323,1779855041000,-583.647802,0.00015881,2]
[423105305,1779855041000,-280.947128,0.00015881,2]
[423105327,1779855041000,-583.647802,0.00015881,2]
[423105310,1779855041000,-151.0,0.00015881,2]
[423105303,1779855041000,-280.947128,0.00015881,2]
[423105271,1779855041000,-500.0,0.0001588,2]
[423105296,1779855041000,-151.0,0.00015881,2]
[423105328,1779855041000,-583.647802,0.00015881,2]
[423105274,1779855041000,-500.0,0.0001588,2]
[423105278,1779855041000,-500.0,0.0001588,2]
[423105270,1779855041000,-505.36498136,0.0001588,2]
[423105272,1779855041000,-500.0,0.0001588,2]
[423105279,1779855041000,-500.0,0.0001588,2]
[423105276,1779855041000,-500.0,0.0001588,2]
[423105273,1779855041000,-500.0,0.0001588,2]
[423105275,1779855041000,-500.0,0.0001588,2]
[423105281,1779855041000,-500.0,0.0001588,2]
[423105280,1779855041000,-500.0,0.0001588,2]
[423105277,1779855041000,-500.0,0.0001588,2]
[423105282,1779855041000,-500.0,0.0001588,2]
[423105285,1779855041000,-200.0,0.00015881,2]
[423105286,1779855041000,-370591.7851403,0.00015881,2]
[423105284,1779855041000,-343479.1931108,0.00015881,2]
[423105287,1779855041000,-249499.4728535,0.00015881,2]
[423105283,1779855041000,-22597.3390909,0.00015881,2]
[423105292,1779855041000,-280.947128,0.00015881,2]
[423105289,1779855041000,-151.0,0.00015881,2]
[423105293,1779855041000,-280.947128,0.00015881,2]
[423105290,1779855041000,-151.0,0.00015881,2]
[423105288,1779855041000,-4658.0349486,0.00015881,2]
[423105294,1779855041000,-151.0,0.00015881,2]
[423105291,1779855041000,-280.947128,0.00015881,2]
[423105295,1779855041000,-151.0,0.00015881,2]
[423105308,1779855041000,-151.0,0.00015881,2]
[423105299,1779855041000,-280.947128,0.00015881,2]
[423105325,1779855041000,-583.647802,0.00015881,2]
[423105368,1779855041000,-1331.934738,0.00016438,2]
[423105339,1779855041000,-845.036993,0.00015881,2]
[423105358,1779855041000,-1285.65,0.0001632,2]
[423105363,1779855041000,-162.306659,0.00016438,2]
[423105365,1779855041000,-1331.934738,0.00016438,2]
[423105366,1779855041000,-1331.934738,0.00016438,2]
[423105383,1779855041000,-1331.934746,0.00016438,2]
[423105370,1779855041000,-1331.934738,0.00016438,2]
[423105374,1779855041000,-1331.934738,0.00016438,2]
[423105371,1779855041000,-1331.934738,0.00016438,2]
[423105369,1779855041000,-1331.934738,0.00016438,2]
[423105373,1779855041000,-1331.934738,0.00016438,2]
[423105372,1779855041000,-1331.934738,0.00016438,2]
[423105376,1779855041000,-1331.934738,0.00016438,2]
[423105379,1779855041000,-1331.934738,0.00016438,2]
[423105378,1779855041000,-1331.934738,0.00016438,2]
[423105377,1779855041000,-1331.934738,0.00016438,2]
[423105380,1779855041000,-1331.934738,0.00016438,2]
[423105381,1779855041000,-1331.934738,0.00016438,2]
[423105382,1779855041000,-1331.934738,0.00016438,2]
[423105390,1779855041000,-150.0,0.0001657,2]
[423105385,1779855041000,-276.91,0.00016525,2]
[423105389,1779855041000,-150.0,0.0001657,2]
[423105387,1779855041000,-150.0,0.0001657,2]
[423105388,1779855041000,-150.0,0.0001657,2]
[423105386,1779855041000,-150.0,0.0001657,2]
[423105384,1779855041000,-178.0,0.00016521,2]
[423105391,1779855041000,-298.0,0.0001657,2]
[423105332,1779855041000,-583.647802,0.00015881,2]
[423105361,1779855041000,-151.0,0.00016438,2]
[423105359,1779855041000,-788.2,0.00016438,2]
[423105375,1779855041000,-1331.934738,0.00016438,2]
[423105356,1779855041000,-166.75,0.00016253,2]
[423105333,1779855041000,-583.647802,0.00015881,2]
[423105357,1779855041000,-6721.75587279,0.000163,2]
[423105331,1779855041000,-583.647802,0.00015881,2]
[423105335,1779855041000,-583.647802,0.00015881,2]
[423105336,1779855041000,-845.036995,0.00015881,2]
[423105330,1779855041000,-583.647802,0.00015881,2]
[423105340,1779855041000,-1000.0,0.00015881,2]
[423105341,1779855041000,-1000.0,0.00015881,2]
[423105338,1779855041000,-845.036995,0.00015881,2]
[423105337,1779855041000,-845.036995,0.00015881,2]
[423105342,1779855041000,-1000.0,0.00015881,2]
[423105343,1779855041000,-440.63510763,0.00015881,2]
[423105353,1779855041000,-200.0,0.0001604,2]
[423105354,1779855041000,-166.3,0.00016071,2]
[423105334,1779855041000,-583.647802,0.00015881,2]
[423105367,1779855041000,-1331.934738,0.00016438,2]
[423105344,1779855041000,-290.72886415,0.00015881,2]
[423105362,1779855041000,-151.0,0.00016438,2]
[423105364,1779855041000,-1331.934738,0.00016438,2]
[423105355,1779855041000,-1539.47,0.0001623,2]
[423105360,1779855041000,-151.0,0.00016438,2]
[423105352,1779855041000,-300.0,0.00016,2]
[423105348,1779855041000,-501.63,0.00015895,2]
[423105345,1779855041000,-151.0,0.00015881,2]
[423105351,1779855041000,-276.91,0.00015992,2]
[423105347,1779855041000,-1852.42,0.00015889,2]
[423105349,1779855041000,-1100.0,0.000159,5]
[423105346,1779855041000,-151.0,0.00015881,2]
[423105350,1779855041000,-1895.81,0.00015984,2]
[423105446,1779855042000,-152.499839,0.00019453,2]
[423105445,1779855042000,-280.947128,0.00019453,2]
[423105444,1779855042000,-276.91,0.0001919,2]
[423105434,1779855042000,-151.0,0.00019178,2]
[423105420,1779855042000,-166.3,0.00018993,2]
[423105416,1779855042000,-13008.57294864,0.00018863,2]
[423105425,1779855042000,-500.0,0.00019141,2]
[423105409,1779855042000,-788.2,0.0001841,2]
[423105426,1779855042000,-500.0,0.00019141,2]
[423105422,1779855042000,-500.0,0.00019141,2]
[423105415,1779855042000,-20372.29,0.0001872,2]
[423105442,1779855042000,-151.0,0.00019178,2]
[423105423,1779855042000,-512.88515102,0.00019141,2]
[423105436,1779855042000,-151.0,0.00019178,2]
[423105449,1779855042000,-280.947128,0.00019453,2]
[423105435,1779855042000,-151.0,0.00019178,2]
[423105437,1779855042000,-151.0,0.00019178,2]
[423105438,1779855042000,-151.0,0.00019178,2]
[423105433,1779855042000,-151.0,0.00019178,2]
[423105443,1779855042000,-245.603913,0.00019178,2]
[423105441,1779855042000,-151.0,0.00019178,2]
[423105440,1779855042000,-151.0,0.00019178,2]
[423105447,1779855042000,-280.947128,0.00019453,2]
[423105451,1779855042000,-280.054056,0.00019453,2]
[423105450,1779855042000,-163.383865,0.00019453,2]
[423105448,1779855042000,-280.947128,0.00019453,2]
[423105452,1779855042000,-151.0,0.00019453,2]
[423105427,1779855042000,-320.3,0.00019141,2]
[423105439,1779855042000,-151.0,0.00019178,2]
[423105412,1779855042000,-276.91,0.00018657,2]
[423105393,1779855042000,-150.0,0.00016632,2]
[423105424,1779855042000,-371.75717604,0.00019141,2]
[423105392,1779855042000,-150.0,0.00016632,2]
[423105459,1779855042000,-996.17381061,0.00019544,2]
[423105395,1779855042000,-150.0,0.00016632,2]
[423105396,1779855042000,-152.0,0.00016632,2]
[423105398,1779855042000,-161.0,0.00016634,2]
[423105397,1779855042000,-150.0,0.00016634,2]
[423105394,1779855042000,-150.0,0.00016632,2]
[423105400,1779855042000,-587.0,0.00016924,2]
[423105401,1779855042000,-276.91,0.00017058,2]
[423105399,1779855042000,-276.71,0.00016681,2]
[423105406,1779855042000,-276.91,0.00018124,2]
[423105404,1779855042000,-501.63,0.00017882,2]
[423105405,1779855042000,-350.0,0.00018,2]
[423105403,1779855042000,-276.91,0.00017591,2]
[423105402,1779855042000,-166.3,0.00017532,2]
[423105408,1779855042000,-1347.89,0.00018392,2]
[423105419,1779855042000,-200.0,0.00018927,2]
[423105432,1779855042000,-151.0,0.00019178,2]
[423105418,1779855042000,-500.0,0.00018864,2]
[423105413,1779855042000,-306.45,0.0001872,2]
[423105414,1779855042000,-226.3,0.0001872,2]
[423105428,1779855042000,-151.0,0.00019178,2]
[423105410,1779855042000,-354.97,0.000185,2]
[423105411,1779855042000,-823.0,0.00018539,2]
[423105407,1779855042000,-276.71,0.00018349,2]
[423105431,1779855042000,-151.0,0.00019178,2]
[423105421,1779855042000,-500.0,0.00019141,2]
[423105430,1779855042000,-151.0,0.00019178,2]
[423105417,1779855042000,-500.0,0.00018864,2]
[423105429,1779855042000,-151.0,0.00019178,2]
[423105455,1779855042000,-583.647802,0.00019453,2]
[423105471,1779855042000,-162.54272136,0.0002,2]
[423105458,1779855042000,-583.647806,0.00019453,2]
[423105486,1779855042000,-240.0,0.00021,2]
[423105492,1779855042000,-5000.0,0.00021918,2]
[423105487,1779855042000,-178.32,0.0002101,2]
[423105506,1779855042000,-306.45,0.00022691,2]
[423105505,1779855042000,-20372.29,0.00022691,2]
[423105496,1779855042000,-163.0,0.00022,2]
[423105494,1779855042000,-2080.17592889,0.00021944,2]
[423105507,1779855042000,-226.3,0.00022691,2]
[423105498,1779855042000,-450.0,0.00022,2]
[423105495,1779855042000,-9739.24,0.0002199,14]
[423105497,1779855042000,-176.0,0.00022,2]
[423105500,1779855042000,-1613.0,0.00022246,2]
[423105502,1779855042000,-788.2,0.00022353,2]
[423105493,1779855042000,-151.880331,0.00021918,2]
[423105499,1779855042000,-240.0,0.00022,2]
[423105504,1779855042000,-167.26,0.00022508,2]
[423105503,1779855042000,-2157.14243826,0.00022492,2]
[423105508,1779855042000,-616.22,0.00022762,2]
[423105510,1779855042000,-586.0,0.00022762,2]
[423105457,1779855042000,-583.647802,0.00019453,2]
[423105511,1779855042000,-666.64,0.00022762,2]
[423105517,1779855042000,-500.0,0.00022762,2]
[423105518,1779855042000,-605.25895332,0.00022762,2]
[423105514,1779855042000,-500.0,0.00022762,2]
[423105515,1779855042000,-151.22574088,0.00022762,20]
[423105512,1779855042000,-500.0,0.00022762,2]
[423105516,1779855042000,-521.41036722,0.00022762,2]
[423105509,1779855042000,-500.0,0.00022762,2]
[423105501,1779855042000,-13008.57294864,0.00022268,2]
[423105489,1779855042000,-2005.9555727,0.00021396,2]
[423105513,1779855042000,-500.0,0.00022762,2]
[423105482,1779855042000,-232.507893,0.00020952,2]
[423105483,1779855042000,-254.546965,0.00020952,2]
[423105453,1779855042000,-151.0,0.00019453,2]
[423105454,1779855042000,-151.0,0.00019453,2]
[423105456,1779855042000,-583.647802,0.00019453,2]
[423105461,1779855042000,-501.63,0.00019869,2]
[423105460,1779855042000,-276.91,0.00019723,2]
[423105463,1779855042000,-151.0,0.0001989,2]
[423105462,1779855042000,-1577.41936954,0.0001989,2]
[423105464,1779855042000,-151.0,0.0001989,2]
[423105465,1779855042000,-1554.89354808,0.0002,2]
[423105470,1779855042000,-240.0,0.0002,2]
[423105466,1779855042000,-1211.0,0.0002,2]
[423105469,1779855042000,-400.0,0.0002,2]
[423105467,1779855042000,-163.0,0.0002,2]
[423105472,1779855042000,-276.71,0.00020017,2]
[423105473,1779855042000,-276.91,0.00020257,2]
[423105488,1779855042000,-354.97,0.000213,2]
[423105468,1779855042000,-176.0,0.0002,2]
[423105491,1779855042000,-166.3,0.00021915,2]
[423105484,1779855042000,-163.0,0.00021,2]
[423105485,1779855042000,-176.0,0.00021,2]
[423105481,1779855042000,-2573.452946,0.00020952,2]
[423105490,1779855042000,-501.63,0.00021856,2]
[423105478,1779855042000,-788.2,0.00020381,2]
[423105476,1779855042000,-500.0,0.00020296,2]
[423105477,1779855042000,-1152.0,0.00020308,2]
[423105479,1779855042000,-166.3,0.00020454,2]
[423105475,1779855042000,-500.0,0.00020296,2]
[423105474,1779855042000,-503.80292184,0.00020296,2]
[423105480,1779855042000,-151.0,0.0002078,2]
[423105539,1779855043000,-285.68969211,0.00023122,2]
[423105555,1779855043000,-1000.0,0.000242,2]
[423105545,1779855043000,-500.0,0.00023619,2]
[423105547,1779855043000,-501.63,0.00023843,2]
[423105550,1779855043000,-500.0,0.00024,2]
[423105552,1779855043000,-500.0,0.00024173,2]
[423105562,1779855043000,-450.0,0.00024383,2]
[423105551,1779855043000,-240.0,0.00024,2]
[423105554,1779855043000,-926.0,0.000242,2]
[423105559,1779855043000,-295.0,0.00024375,2]
[423105557,1779855043000,-788.2,0.00024324,2]
[423105558,1779855043000,-435.0,0.0002437,2]
[423105556,1779855043000,-315.0,0.000242,2]
[423105560,1779855043000,-150.0,0.00024375,2]
[423105561,1779855043000,-276.0,0.00024375,2]
[423105563,1779855043000,-450.0,0.00024383,2]
[423105567,1779855043000,-450.0,0.00024383,2]
[423105565,1779855043000,-450.0,0.00024383,2]
[423105546,1779855043000,-643.17963152,0.00023619,2]
[423105553,1779855043000,-500.0,0.00024173,2]
[423105540,1779855043000,-239.37623589,0.00023122,2]
[423105532,1779855043000,-176.0,0.00023,2]
[423105544,1779855043000,-500.0,0.00023619,2]
[423105568,1779855043000,-450.0,0.00024383,2]
[423105519,1779855043000,-343479.1931108,0.00022763,2]
[423105520,1779855043000,-151.0,0.00022763,2]
[423105533,1779855043000,-240.0,0.00023,2]
[423105537,1779855043000,-1544.0,0.00023122,2]
[423105534,1779855043000,-1299.03083609,0.0002304,2]
[423105536,1779855043000,-1544.0,0.00023122,2]
[423105535,1779855043000,-1544.0,0.00023122,2]
[423105522,1779855043000,-280.947128,0.00022763,2]
[423105549,1779855043000,-176.0,0.00024,2]
[423105524,1779855043000,-280.947128,0.00022763,2]
[423105525,1779855043000,-280.947124,0.00022763,2]
[423105526,1779855043000,-151.0,0.00022763,2]
[423105527,1779855043000,-177.59203272,0.000229,2]
[423105531,1779855043000,-163.0,0.00023,2]
[423105529,1779855043000,-353.43283768,0.00023,2]
[423105538,1779855043000,-1544.0,0.00023122,2]
[423105543,1779855043000,-500.0,0.00023619,2]
[423105541,1779855043000,-996.17381061,0.00023496,2]
[423105548,1779855043000,-163.0,0.00024,2]
[423105523,1779855043000,-280.947128,0.00022763,2]
[423105566,1779855043000,-450.0,0.00024383,2]
[423105542,1779855043000,-1347.89,0.00023616,2]
[423105573,1779855043000,-150.0,0.00024386,2]